fUST/lending_fUST_20260202
["ID","MTS","AMOUNT","RATE_DAILY","PERIOD"]
[404237399,1769988425131,-316.19339393,0.00024953,2]
[404237400,1769988472714,-216.10947565,0.00018,2]
[404237401,1769988474821,-171.0,0.00018,2]
[404237402,1769988476940,-967.79435068,0.00018,2]
[404237403,1769988479099,-1000.0,0.00018,2]
[404237404,1769988481245,-1000.0,0.00018,2]
[404237405,1769988482887,-1000.0,0.00018,2]
[404237406,1769988484591,-1000.0,0.00018,2]
[404237407,1769988486172,-1000.0,0.00018,2]
[404237408,1769988488772,-1000.0,0.00018,2]
[404237409,1769988511604,10343.86375366,0.0002739,120]
[404237417,1769988518401,-541.78421547,0.00017,2]
[404237418,1769988518427,-458.21578453,0.00018,2]
[404237419,1769988520154,-755.32700302,0.0001747,2]
[404237420,1769988521766,-1000.0,0.0001747,2]
[404237421,1769988524051,-1000.0,0.0001747,2]
[404237422,1769988526234,-1032.20564932,0.0001747,2]
[404237423,1769988529111,-1000.0,0.0001747,2]
[404237424,1769988530632,-307.83078675,0.0001747,2]
[404237425,1769988532749,-1000.0,0.0001747,2]
[404237426,1769988534792,-300.0,0.0001747,2]
[404237435,1769988537040,-300.0,0.0001747,2]
[404237436,1769988539352,-776.97257785,0.0001747,2]
[404237437,1769988541452,-335.33042979,0.0001747,2]
[404237438,1769988544811,-151.75939226,0.0001747,2]
[404237439,1769988603500,-5000.0,0.00017122,2]
[404237440,1769988609370,-151.75939226,0.00017295,2]
[404237441,1769988609402,-300.0,0.00017469,2]
[404237442,1769988609433,-300.0,0.00017469,2]
[404237443,1769988609465,-2755.83831447,0.0001747,2]
[404237489,1769988631744,-476.52,0.00016781,2]
[404237491,1769988631757,-925.36181593,0.00016781,2]
[404237503,1769988631850,-511.2604984,0.00016781,2]
[404237537,1769988638232,-766.85768567,0.00016781,2]
[404237538,1769988638242,-5000.0,0.00016951,2]
[404237539,1769988638253,-5000.0,0.00017122,2]
[404237540,1769988638266,-2984.81458654,0.0001747,2]
[404237541,1769988638278,-219.25763018,0.00018,2]
[404237542,1769988638287,-420.0,0.00019071,2]
[404237543,1769988638299,-270.0,0.00019071,2]
[404237544,1769988638309,-1000.0,0.00020124,2]
[404237545,1769988638319,-16321.22200626,0.00021,2]
[404237547,1769988638328,-36075.23354785,0.00026,30]
[404237565,1769988640162,-22824.3132297,0.00026,30]
[404237566,1769988640172,-68.79050634,0.0003054,2]
[404237567,1769988640182,-216.06470074,0.00032647,9]
[404237568,1769988640192,-151.75939226,0.000332,117]
[404237569,1769988640201,-289.07217096,0.00033249,2]
[404237570,1769988640496,-2e-08,0.00033249,2]
[404237694,1769988646107,-243.1612167,0.00022848,2]
[404237696,1769988646117,-77.4904254,0.00033249,2]
[404237698,1769988646126,-325.6382239,0.00033734,2]
[404237700,1769988646135,-386.839497,0.0003419,2]
[404237702,1769988646144,-179.396,0.0003419,2]
[404237704,1769988646153,-3340.03643607,0.0003419,2]
[404237706,1769988646162,-740.74221401,0.00034548,2]
[404237707,1769988646172,-205.61318815,0.00035,2]
[404237710,1769988646187,-138936.7398895,0.00035,2]
[404237846,1769988647576,-10818.48716411,0.00035,2]
[404237848,1769988647586,-1041.66666667,0.00035449,2]
[404237850,1769988647597,-2000.0,0.00035912,7]
[404237852,1769988647605,-1000.0,0.000367,22]
[404237854,1769988647615,-404.31105148,0.00036745,2]
[404237856,1769988647624,-185.6050702,0.0003677,30]
[404237858,1769988647633,-185.6050702,0.0003677,30]
[404237860,1769988647643,-185.3334475,0.0003677,30]
[404237862,1769988647653,-199.058295,0.000368,2]
[404237864,1769988647662,-1957.856,0.00036801,2]
[404237866,1769988647671,-335.18,0.00036836,20]
[404237868,1769988647680,-500.0,0.0003684,13]
[404237870,1769988647689,-501.18727352,0.00036841,13]
[404237872,1769988647699,-456.69081864,0.00036844,15]
[404237874,1769988647708,-500.0,0.00036844,7]
[404237876,1769988647718,-325.25497487,0.00036844,15]
[404237878,1769988647727,-500.0,0.00036844,15]
[404237880,1769988647736,-244.7542082,0.00036844,7]
[404237882,1769988647745,-500.0,0.00036844,15]
[404237884,1769988647754,-372.71074942,0.00036844,15]
[404237886,1769988647763,-202.297,0.00036844,46]
[404237888,1769988647773,-151.0,0.00036845,2]
[404237890,1769988647782,-14153.92959293,0.00036845,2]
[404237892,1769988647793,-10013.2515,0.00036845,2]
[404237961,1769988913825,1888.0,0.00036837,30]
[404237962,1769989069540,-150.0,0.00021918,2]
[404237963,1769989069569,-979.47940387,0.00022092,2]
[404237964,1769989069598,-150.0,0.00022192,2]
[404237965,1769989069625,-300.0,0.00022466,2]
[404237966,1769989069652,-300.0,0.00023014,2]
[404237967,1769989208210,1183.99870545,0.00036851,30]
[404237971,1769989403953,-223.22573395,0.00013673,2]
[404237973,1769989462762,-499.73739008,0.00013273,2]
[404237974,1769989462783,-17.23518777,0.00013673,2]
[404237975,1769989466582,-59.53907828,0.00013673,2]
[404237976,1769989466603,-218.83005572,0.00014221,2]
[404237977,1769989546135,-797.0,0.0002395,2]
[404237978,1769989546158,-150.0,0.00024071,2]
[404237979,1769989546179,-177.0,0.00026071,2]
[404237980,1769989546200,-204.0,0.00028071,2]
[404237981,1769989546220,-231.0,0.00030071,2]
[404237982,1769989546240,-230.21702742,0.00032071,2]
[404237984,1769989644145,-698.47956876,0.0003175,2]
[404238028,1769989832027,-162.78297258,0.0002589,2]
[404238030,1769989832038,-837.0,0.0002589,2]
[404238032,1769989832047,-1041.66666667,0.00035036,2]
[404238035,1769989832056,-740.74221401,0.00035036,2]
[404238038,1769989832066,-151.75939226,0.00035066,120]
[404238041,1769989832075,-351.0,0.00035358,3]
[404238044,1769989832084,-300.0,0.00035358,2]
[404238047,1769989832094,-300.0,0.00035358,3]
[404238049,1769989832104,-300.0,0.00035358,3]
[404238050,1769989832113,-320.0,0.00035641,11]
[404238051,1769989832122,-243.16,0.00036074,2]
[404238052,1769989832131,-179.0,0.00036074,2]
[404238053,1769989832140,-1948.6155541,0.00036751,2]
[404238054,1769989832149,-780.0,0.000368,2]
[404238055,1769989832158,-151.0,0.00036837,31]
[404238056,1769989832167,-151.0,0.00036837,31]
[404238057,1769989832176,-151.0,0.00036837,31]
[404238058,1769989832186,-151.0,0.00036837,31]
[404238059,1769989832194,-151.0,0.00036837,31]
[404238060,1769989832203,-151.0,0.00036837,31]
[404238061,1769989832212,-151.0,0.00036837,31]
[404238062,1769989832222,-151.0,0.00036837,31]
[404238063,1769989832231,-153.436502,0.00036837,31]
[404238064,1769989832240,-151.0,0.00036837,31]
[404238065,1769989832249,-151.0,0.00036837,31]
[404238066,1769989832258,-152.349574,0.00036837,31]
[404238067,1769989832267,-151.0,0.00036837,31]
[404238068,1769989832276,-740.74221401,0.00036837,3]
[404238069,1769989832285,-216.542,0.00036844,46]
[404238070,1769989832294,-151.0,0.00036845,31]
[404238071,1769989832303,-151.0,0.00036845,31]
[404238072,1769989832314,-500.0,0.00036849,13]
[404238073,1769989832323,-599.40389137,0.0003685,15]
[404238074,1769989832332,-321.99387949,0.0003685,15]
[404238076,1769989832341,-321.22,0.0003685,20]
[404238078,1769989832350,-2061.04856937,0.00036851,20]
[404238079,1769989832359,-5000.0,0.00036851,20]
[404238081,1769989832368,-5000.0,0.00036851,20]
[404238083,1769989832377,-151.0,0.00036851,31]
[404238085,1769989832386,-151.0,0.00036851,31]
[404238087,1769989832395,-151.0,0.00036851,31]
[404238089,1769989832404,-151.0,0.00036851,31]
[404238091,1769989832414,-151.0,0.00036851,31]
[404238093,1769989832423,-151.0,0.00036851,31]
[404238095,1769989832432,-151.0,0.00036851,31]
[404238097,1769989832441,-151.0,0.00036851,31]
[404238099,1769989832450,-151.0,0.00036851,31]
[404238101,1769989832459,-155.016819,0.00036851,31]
[404238103,1769989832468,-151.0,0.00036851,31]
[404238105,1769989832478,-151.0,0.00036851,31]
[404238107,1769989832487,-296.467561,0.00036851,31]
[404238109,1769989832495,-934.013463,0.00036851,31]
[404238111,1769989832504,-934.013463,0.00036851,31]
[404238113,1769989832518,-934.013463,0.00036851,31]
[404238115,1769989832527,-934.013463,0.00036851,31]
[404238117,1769989832536,-934.013463,0.00036851,31]
[404238119,1769989832545,-934.013463,0.00036851,31]
[404238121,1769989832555,-934.013463,0.00036851,31]
[404238123,1769989832565,-934.013463,0.00036851,31]
[404238125,1769989832575,-934.013463,0.00036851,31]
[404238127,1769989832587,-934.013463,0.00036851,31]
[404238129,1769989832596,-934.013463,0.00036851,31]
[404238131,1769989832605,-934.013463,0.00036851,31]
[404238133,1769989832615,-934.013463,0.00036851,31]
[404238135,1769989832626,-934.013463,0.00036851,31]
[404238137,1769989832635,-934.013463,0.00036851,31]
[404238138,1769989832645,-934.013463,0.00036851,31]
[404238140,1769989832654,-934.013463,0.00036851,31]
[404238142,1769989832663,-934.013463,0.00036851,31]
[404238144,1769989832673,-934.013463,0.00036851,31]
[404238146,1769989832682,-934.013463,0.00036851,31]
[404238148,1769989832691,-151.0,0.00036851,20]
[404238150,1769989832701,-151.0,0.00036851,20]
[404238152,1769989832710,-159.564903,0.00036851,20]
[404238154,1769989832720,-151.0,0.00036851,31]
[404238156,1769989832729,-151.0,0.00036851,31]
[404238158,1769989832738,-151.0,0.00036851,31]
[404238160,1769989832747,-202.47,0.00036851,31]
[404238162,1769989832756,-151.0,0.00036851,31]
[404238164,1769989832766,-151.0,0.00036851,31]
[404238166,1769989832774,-151.0,0.00036851,31]
[404238168,1769989832784,-151.0,0.00036851,31]
[404238170,1769989832793,-151.0,0.00036851,31]
[404238172,1769989832802,-151.0,0.00036851,31]
[404238174,1769989832812,-151.0,0.00036851,31]
[404238176,1769989832824,-151.0,0.00036851,31]
[404238178,1769989832833,-151.0,0.00036851,31]
[404238180,1769989832842,-257.901625,0.00036851,31]
[404238182,1769989832851,-257.901625,0.00036851,31]
[404238184,1769989832861,-257.901625,0.00036851,31]
[404238186,1769989832870,-257.901625,0.00036851,31]
[404238188,1769989832880,-257.901625,0.00036851,31]
[404238190,1769989832889,-257.901625,0.00036851,31]
[404238192,1769989832898,-257.901625,0.00036851,31]
[404238194,1769989832907,-257.901625,0.00036851,31]
[404238196,1769989832915,-257.901625,0.00036851,31]
[404238198,1769989832925,-257.901625,0.00036851,31]
[404238200,1769989832935,-257.901625,0.00036851,31]
[404238202,1769989832944,-257.901625,0.00036851,31]
[404238204,1769989832953,-257.901625,0.00036851,31]
[404238206,1769989832962,-257.901625,0.00036851,31]
[404238208,1769989832972,-257.901625,0.00036851,31]
[404238210,1769989832980,-257.901625,0.00036851,31]
[404238212,1769989832990,-151.0,0.00036851,31]
[404238214,1769989832998,-151.0,0.00036851,31]
[404238216,1769989833007,-151.0,0.00036851,31]
[404238218,1769989833017,-199.884507,0.00036851,31]
[404238220,1769989833027,-165.087625,0.00036851,31]
[404238221,1769989833036,-151.0,0.00036851,31]
[404238223,1769989833045,-151.0,0.00036851,31]
[404238235,1769989833142,-151.0,0.00036851,31]
[404238237,1769989833152,-151.0,0.00036851,31]
[404238239,1769989833162,-151.0,0.00036851,31]
[404238241,1769989833171,-151.0,0.00036851,31]
[404238243,1769989833180,-151.0,0.00036851,31]
[404238245,1769989833189,-151.0,0.00036851,31]
[404238247,1769989833199,-151.0,0.00036851,31]
[404238249,1769989833209,-151.461106,0.00036851,31]
[404238251,1769989833218,-151.0,0.00036851,31]
[404238252,1769989833228,-151.0,0.00036851,31]
[404238254,1769989833237,-151.0,0.00036851,31]
[404238256,1769989833247,-151.0,0.00036851,31]
[404238258,1769989833257,-151.0,0.00036851,31]
[404238260,1769989833266,-151.0,0.00036851,31]
[404238263,1769989833276,-151.0,0.00036851,31]
[404238265,1769989833285,-151.0,0.00036851,31]
[404238267,1769989833294,-151.0,0.00036851,31]
[404238269,1769989833303,-151.0,0.00036851,31]
[404238270,1769989833312,-151.0,0.00036851,31]
[404238273,1769989833323,-151.0,0.00036851,31]
[404238275,1769989833332,-151.0,0.00036851,31]
[404238276,1769989833343,-906.360697,0.00036851,31]
[404238278,1769989833353,-906.360697,0.00036851,31]
[404238281,1769989833363,-906.360697,0.00036851,31]
[404238283,1769989833373,-906.360697,0.00036851,31]
[404238285,1769989833382,-906.360697,0.00036851,31]
[404238286,1769989833391,-906.360697,0.00036851,31]
[404238288,1769989833400,-906.360697,0.00036851,31]
[404238291,1769989833409,-906.360697,0.00036851,31]
[404238292,1769989833419,-906.360697,0.00036851,31]
[404238294,1769989833428,-906.360697,0.00036851,31]
[404238296,1769989833438,-906.360697,0.00036851,31]
[404238298,1769989833447,-906.360697,0.00036851,31]
[404238300,1769989833456,-906.360697,0.00036851,31]
[404238302,1769989833465,-906.360697,0.00036851,31]
[404238304,1769989833474,-906.360697,0.00036851,31]
[404238306,1769989833484,-906.360697,0.00036851,31]
[404238308,1769989833493,-906.360697,0.00036851,31]
[404238310,1769989833502,-906.360697,0.00036851,31]
[404238312,1769989833511,-906.360697,0.00036851,31]
[404238314,1769989833520,-906.360699,0.00036851,31]
[404238316,1769989833530,-178.797839,0.00036851,7]
[404238318,1769989833540,-251.606443,0.00036851,31]
[404238320,1769989833548,-151.0,0.00036851,31]
[404238322,1769989833558,-151.0,0.00036851,31]
[404238324,1769989833570,-157.892727,0.00036851,31]
[404238326,1769989833584,-151.0,0.00036851,31]
[404238328,1769989833593,-151.0,0.00036851,31]
[404238330,1769989833602,-151.0,0.00036851,31]
[404238332,1769989833611,-151.0,0.00036851,31]
[404238334,1769989833622,-151.0,0.00036851,31]
[404238335,1769989833632,-151.0,0.00036851,31]
[404238336,1769989833642,-151.0,0.00036851,31]
[404238337,1769989833655,-151.0,0.00036851,31]
[404238338,1769989833664,-151.0,0.00036851,31]
[404238339,1769989833675,-151.0,0.00036851,31]
[404238340,1769989833684,-151.0,0.00036851,31]
[404238341,1769989833693,-151.0,0.00036851,31]
[404238342,1769989833703,-151.0,0.00036851,31]
[404238343,1769989833712,-151.0,0.00036851,31]
[404238344,1769989833721,-151.0,0.00036851,31]
[404238345,1769989833730,-151.0,0.00036851,31]
[404238346,1769989833739,-151.0,0.00036851,31]
[404238347,1769989833748,-151.0,0.00036851,31]
[404238348,1769989833758,-151.0,0.00036851,31]
[404238349,1769989833767,-299.4584,0.00036851,31]
[404238350,1769989833777,-151.0,0.00036851,31]
[404238351,1769989833787,-151.0,0.00036851,31]
[404238352,1769989833796,-151.0,0.00036851,31]
[404238353,1769989833807,-151.0,0.00036851,31]
[404238354,1769989833817,-151.0,0.00036851,31]
[404238355,1769989833827,-151.0,0.00036851,31]
[404238356,1769989833838,-151.0,0.00036851,31]
[404238357,1769989833848,-151.0,0.00036851,31]
[404238358,1769989833857,-151.0,0.00036851,31]
[404238359,1769989833868,-151.0,0.00036851,31]
[404238360,1769989833879,-151.0,0.00036851,31]
[404238361,1769989833890,-151.0,0.00036851,31]
[404238362,1769989833902,-151.0,0.00036851,31]
[404238363,1769989833912,-151.0,0.00036851,31]
[404238364,1769989833921,-151.0,0.00036851,31]
[404238365,1769989833931,-151.0,0.00036851,31]
[404238366,1769989833941,-151.0,0.00036851,31]
[404238367,1769989833951,-270.808422,0.00036851,31]
[404238368,1769989833960,-153.520396,0.00036851,31]
[404238369,1769989833969,-151.0,0.00036851,31]
[404238370,1769989833979,-151.0,0.00036851,31]
[404238371,1769989833988,-151.0,0.00036851,31]
[404238372,1769989833997,-151.0,0.00036851,31]
[404238373,1769989834007,-180.102436,0.00036851,31]
[404238374,1769989834016,-205.439022,0.00036851,31]
[404238375,1769989834026,-151.0,0.00036851,31]
[404238376,1769989834036,-151.0,0.00036851,31]
[404238377,1769989834046,-151.0,0.00036851,31]
[404238378,1769989834056,-151.0,0.00036851,31]
[404238379,1769989834067,-151.0,0.00036851,31]
[404238380,1769989834076,-151.0,0.00036851,31]
[404238381,1769989834084,-151.0,0.00036851,31]
[404238382,1769989834094,-151.0,0.00036851,31]
[404238383,1769989834105,-151.0,0.00036851,31]
[404238384,1769989834117,-172.741523,0.00036851,31]
[404238385,1769989834126,-151.0,0.00036851,2]
[404238386,1769989834137,-151.0,0.00036851,2]
[404238387,1769989834147,-151.0,0.00036851,2]
[404238388,1769989834158,-151.0,0.00036851,2]
[404238389,1769989834169,-205.822561,0.00036851,2]
[404238390,1769989834178,-151.0,0.00036851,31]
[404238391,1769989834188,-151.0,0.00036851,31]
[404238392,1769989834197,-151.0,0.00036851,31]
[404238393,1769989834207,-151.0,0.00036851,31]
[404238394,1769989834216,-151.0,0.00036851,31]
[404238395,1769989834226,-151.0,0.00036851,31]
[404238396,1769989834235,-151.0,0.00036851,31]
[404238397,1769989834244,-151.0,0.00036851,31]
[404238398,1769989834253,-151.0,0.00036851,31]
[404238399,1769989834262,-151.0,0.00036851,31]
[404238400,1769989834271,-151.0,0.00036851,31]
[404238401,1769989834281,-151.0,0.00036851,31]
[404238402,1769989834291,-151.0,0.00036851,31]
[404238403,1769989834300,-154.976174,0.00036851,31]
[404238404,1769989834308,-151.0,0.00036851,31]
[404238405,1769989834319,-151.0,0.00036851,31]
[404238406,1769989834328,-160.993375,0.00036851,31]
[404238407,1769989834337,-151.0,0.00036851,31]
[404238408,1769989834345,-151.0,0.00036851,31]
[404238409,1769989834354,-151.0,0.00036851,31]
[404238410,1769989834363,-151.0,0.00036851,31]
[404238411,1769989834375,-151.0,0.00036851,31]
[404238412,1769989834384,-151.0,0.00036851,31]
[404238413,1769989834393,-151.0,0.00036851,31]
[404238414,1769989834402,-151.0,0.00036851,31]
[404238415,1769989834411,-151.0,0.00036851,31]
[404238416,1769989834421,-151.0,0.00036851,31]
[404238417,1769989834430,-151.0,0.00036851,31]
[404238418,1769989834439,-221.800448,0.00036851,31]
[404238419,1769989834448,-151.0,0.00036851,31]
[404238420,1769989834457,-151.0,0.00036851,31]
[404238421,1769989834467,-151.0,0.00036851,31]
[404238422,1769989834476,-151.0,0.00036851,31]
[404238423,1769989834485,-151.0,0.00036851,31]
[404238424,1769989834495,-245.550852,0.00036851,31]
[404238425,1769989834504,-151.0,0.00036851,31]
[404238426,1769989834513,-151.0,0.00036851,31]
[404238427,1769989834523,-151.0,0.00036851,31]
[404238428,1769989834532,-151.0,0.00036851,31]
[404238429,1769989834542,-151.0,0.00036851,31]
[404238430,1769989834551,-151.0,0.00036851,31]
[404238431,1769989834560,-151.0,0.00036851,31]
[404238432,1769989834570,-151.0,0.00036851,31]
[404238433,1769989834581,-205.876602,0.00036851,31]
[404238434,1769989834591,-146493.55442342,0.00036851,2]
[404238435,1769989834601,-200.04371493,0.00036851,2]
[404238436,1769989834610,-389.21178056,0.00036851,2]
[404238437,1769989834620,-203.26646945,0.00036851,2]
[404238438,1769989834630,-2009.81637768,0.00036851,2]
[404238443,1769989838123,-300.0,0.00036064,30]
[404238444,1769989838133,-300.0,0.00036064,30]
[404238445,1769989838143,-990.0,0.0003685,120]
[404238446,1769989838152,-1168.43928645,0.00036851,2]
[404238447,1769989838161,-168.15859355,0.00036851,2]
[404238448,1769989838171,-151.77483509,0.00036851,2]
[404238449,1769989838180,-578.6705916,0.00036851,2]
[404238450,1769989838190,-26891.63534892,0.00036851,2]
[404238451,1769989838202,-6164.53943582,0.00036851,2]
[404238460,1769989840282,-5500.023309,0.00036851,2]
[404238462,1769989840293,-1833.34169242,0.00036851,2]
[404238481,1769989846317,-533.83791493,0.00036654,7]
[404238482,1769989846328,-379.0278615,0.00036849,30]
[404238483,1769989846337,-1480.49022964,0.00036851,2]
[404238484,1769989846348,-7692.03494152,0.00036851,2]
[404238486,1769989848129,-379.0278615,0.00036849,30]
[404238487,1769989848140,-60.50027663,0.00036851,20]
[404238488,1769989848152,-4939.49972337,0.00036851,20]
[404238489,1769989848163,-5255.307848,0.00036851,2]
[404238496,1769990500232,-150.0,0.00021918,2]
[404238497,1769990500251,-150.0,0.00021918,2]
[404238498,1769990500263,-51.55640781,0.00021918,2]
[404238499,1769990632787,-458.21578453,0.0001314,2]
[404238500,1769990635745,-1000.0,0.0001314,2]
[404238501,1769990648088,-1000.0,0.00013009,2]
[404238502,1769990650299,-1000.0,0.00013009,2]
[404238503,1769990651834,-216.10947565,0.00013009,2]
[404238504,1769990656367,-171.0,0.00013009,2]
[404238505,1769990658004,-1000.0,0.00013009,2]
[404238506,1769990660701,-1000.0,0.00013009,2]
[404238507,1769990663028,-612.89052435,0.00013009,2]
[404238508,1769990663050,-354.90382633,0.0001314,2]
[404238509,1769990664597,-44.39681975,0.0001314,2]
[404238510,1769990664618,-351.55640781,0.00013273,2]
[404238511,1769990664639,-500.0,0.00013273,2]
[404238512,1769990664659,-104.04677244,0.00013273,2]
[404238514,1769990742175,-1752.4790786,0.0001314,2]
[404238515,1769990840125,-1462.35077375,0.0001314,2]
[404238520,1769990887773,-755.32700302,0.00013009,2]
[404238521,1769990889353,-335.33042979,0.00013009,2]
[404238522,1769990891477,-776.97257785,0.00013009,2]
[404238523,1769990893230,-1000.0,0.00013009,2]
[404238524,1769990896614,-1000.0,0.00013009,2]
[404238525,1769990898772,-1032.20564932,0.00013009,2]
[404238581,1769991033143,-100.16434002,0.00013009,2]
[404238583,1769991033153,-177.0,0.00013141,2]
[404238585,1769991033162,-500.0,0.00013273,2]
[404238587,1769991033171,-61.57539916,0.00013273,2]
[404238589,1769991033183,-334.3778284,0.00013273,2]
[404238591,1769991033192,-150.0,0.00021918,2]
[404238593,1769991033202,-300.0,0.00022466,2]
[404238595,1769991033212,-450.0,0.00023014,2]
[404238597,1769991033221,-600.0,0.00023562,2]
[404238600,1769991033231,-291.63220281,0.0002411,2]
[404238603,1769991033240,-257.18512968,0.00030441,30]
[404238607,1769991033249,-300.0,0.00030604,2]
[404238611,1769991033258,-1449.0,0.00030604,2]
[404238615,1769991033267,-10723.1213537,0.00030605,2]
[404238618,1769991033277,-151.75939226,0.000332,117]
[404238621,1769991033286,-551.35132354,0.00033747,7]
[404238623,1769991033296,-500.0,0.00033747,7]
[404238625,1769991033305,-284.34678076,0.00033747,7]
[404238627,1769991033313,-500.0,0.00033747,7]
[404238629,1769991033322,-624.39004139,0.00033747,7]
[404238631,1769991033332,-3578.8388737,0.00033748,2]
[404238633,1769991033340,-158.0,0.00034,30]
[404238635,1769991033349,-173.234,0.00034341,38]
[404238637,1769991033359,-13400.6116785,0.00034342,2]
[404238639,1769991033371,-179.0,0.00034705,2]
[404238641,1769991033380,-749.0,0.00034929,11]
[404238643,1769991033389,-150.0,0.00035616,5]
[404238645,1769991033398,-152.52650043,0.00035745,2]
[404238647,1769991033407,-625.70498662,0.00035777,2]
[404238649,1769991033416,-740.74221401,0.00035777,2]
[404238651,1769991033426,-250.0,0.00036164,5]
[404238653,1769991033434,-168.0,0.00036311,2]
[404238655,1769991033443,-322.41,0.00036438,20]
[404238657,1769991033452,-350.0,0.00036712,5]
[404238659,1769991033461,-416.04761421,0.00036752,2]
[404238661,1769991033471,-416.04761418,0.00036756,2]
[404238663,1769991033480,-416.04761418,0.00036759,2]
[404238665,1769991033489,-416.04761418,0.00036763,2]
[404238667,1769991033498,-416.04761418,0.00036766,2]
[404238669,1769991033506,-739.980032,0.000368,29]
[404238670,1769991033516,-150.0,0.000368,2]
[404238671,1769991033525,-780.0,0.000368,2]
[404238672,1769991033534,-605.37322189,0.0003685,2]
[404238673,1769991033542,-500.0,0.00036851,13]
[404238674,1769991033552,-500.0,0.00036851,13]
[404238675,1769991033561,-151.0,0.00036853,31]
[404238676,1769991033570,-151.0,0.00036853,31]
[404238677,1769991033579,-172.780601,0.00036853,31]
[404238678,1769991033589,-151.0,0.00036853,31]
[404238679,1769991033598,-172.780601,0.00036853,31]
[404238680,1769991033607,-172.780601,0.00036853,31]
[404238681,1769991033619,-172.780601,0.00036853,31]
[404238682,1769991033628,-172.780601,0.00036853,31]
[404238683,1769991033638,-172.780601,0.00036853,31]
[404238684,1769991033647,-172.780601,0.00036853,31]
[404238685,1769991033656,-172.780601,0.00036853,31]
[404238686,1769991033665,-151.0,0.00036853,31]
[404238687,1769991033674,-151.0,0.00036853,31]
[404238688,1769991033684,-151.0,0.00036853,31]
[404238689,1769991033693,-162.128375,0.00036853,31]
[404238690,1769991033703,-151.0,0.00036853,31]
[404238691,1769991033713,-151.0,0.00036853,31]
[404238692,1769991033723,-151.0,0.00036853,31]
[404238693,1769991033732,-151.0,0.00036853,31]
[404238694,1769991033742,-221.57676,0.00036853,31]
[404238695,1769991033751,-990.0,0.00036853,120]
[404238696,1769991033760,-500.20799218,0.00036865,15]
[404238697,1769991033769,-470.20415455,0.00036865,15]
[404238698,1769991033778,-277055.06414305,0.00036866,2]
[404238699,1769991033788,-41443.43922635,0.00036866,2]
[404238700,1769991033798,-3317.52520929,0.00036866,5]
[404238701,1769991033806,-514.70109832,0.00036866,2]
[404238702,1769991033816,-4176.9027553,0.00036866,2]
[404238703,1769991033826,-62359.11105346,0.00036866,2]
[404238704,1769991033835,-7845.21977356,0.00036866,2]
[404238705,1769991033844,-14475.47099829,0.00036866,2]
[404238706,1769991033854,-605.6366676,0.00036866,2]
[404238707,1769991033863,-1211.2733352,0.00036866,2]
[404238708,1769991033873,-1200.7503304,0.00036866,2]
[404238709,1769991033882,-605.5062385,0.00036866,2]
[404238710,1769991033892,-453.3458639,0.00036866,2]
[404238711,1769991033901,-500.0,0.00036866,2]
[404238712,1769991033910,-500.0,0.00036866,2]
[404238713,1769991033923,-500.0,0.00036866,2]
[404238714,1769991033932,-554.538429,0.00036866,2]
[404238715,1769991033942,-605.6366676,0.00036866,2]
[404238716,1769991033951,-605.6366676,0.00036866,2]
[404238717,1769991033962,-605.6366676,0.00036866,2]
[404238718,1769991033971,-605.6366676,0.00036866,2]
[404238719,1769991033981,-1262.7083185,0.00036866,2]